bitfinex-derivatives/quotes_SOLF0:USTF0_20250820
["timestamp","ask_amount","ask_price","bid_price","bid_amount"]
[1755708856889,2.82,184.29,184.25,12.98828877]
[1755708857493,2.82,184.29,184.25,8.4771]
[1755708857690,2.82,184.29,184.25,5.4271]
[1755708857993,2.82,184.29,184.26,5.4269]
[1755708858195,2.82,184.29,184.24,7.56118877]
[1755708858492,2.82,184.29,184.26,5.4269]
[1755708859195,2.82,184.29,184.25,8.4772]
[1755708859691,2.82,184.29,184.26,5.4268]
[1755708860698,0.03521895,184.32,184.26,5.4268]
[1755708860895,2.82,184.31,184.22,7.56118877]
[1755708861398,2.82,184.31,184.22,8.4779]
[1755708861699,2.82,184.31,184.21,5.45568599]
[1755708861700,2.99945535,184.29,184.21,5.45568599]
[1755708861996,2.82,184.28,184.21,5.45568599]
[1755708862392,0.0380469,184.26,184.21,6.37279722]
[1755708862592,2.82,184.25,184.21,6.37279722]
[1755708862993,2.82,184.24,184.21,5.4283]
[1755708863398,0.0380469,184.26,184.19,4.51118877]
[1755708863693,0.0380469,184.26,184.21,4.51118877]
[1755708863897,0.0380469,184.26,184.23,3.05]
[1755708864087,0.0380469,184.26,184.25,5.4272]
[1755708864795,0.0380469,184.26,184.24,5.4274]
[1755708865401,0.0380469,184.26,184.24,8.4774]
[1755708866497,0.0380469,184.26,184.25,8.2672]
[1755708868694,0.0380469,184.26,184.24,5.4274]
[1755708868894,0.0380469,184.26,184.22,2.84]
[1755708869195,3.1080469,184.26,184.22,8.2678]
[1755708869392,3.07,184.25,184.19,4.51118877]
[1755708869595,0.0380469,184.26,184.2,5.4284]
[1755708869797,3.1080469,184.26,184.18,5.45587828]
[1755708869995,3.1080469,184.26,184.18,0.94468951]
[1755708870193,3.1080469,184.26,184.19,5.4289]
[1755708871597,3.1080469,184.26,184.19,2.84]
[1755708871994,0.0380469,184.26,184.19,2.84]
[1755708872901,0.0380469,184.26,184.19,7.35118877]
[1755708873205,0.0380469,184.26,184.23,5.4276]
[1755708873698,0.0380469,184.26,184.24,5.4274]
[1755708873905,0.0380469,184.26,184.2,4.51118877]
[1755708874101,0.0380469,184.26,184.21,2.84]
[1755708874307,0.0380469,184.26,184.24,5.4273]
[1755708875104,0.0380469,184.26,184.23,5.4277]
[1755708875297,0.0380469,184.26,184.21,2.84]
[1755708875496,0.0380469,184.26,184.19,4.51118877]
[1755708875703,0.0380469,184.26,184.19,2.84]
[1755708875895,3.1080469,184.26,184.21,8.2682]
[1755708876101,3.07,184.25,184.18,8.29587828]
[1755708876307,3.07,184.25,184.18,3.78468951]
[1755708876806,3.07,184.25,184.19,5.4289]
[1755708877009,3.07,184.25,184.18,3.78468951]
[1755708877306,3.07,184.24,184.2,5.4286]
[1755708877502,3.07,184.25,184.18,3.78468951]
[1755708878107,3.07,184.25,184.19,5.4289]
[1755708878308,3.07,184.25,184.18,3.78468951]
[1755708879011,3.07,184.25,184.19,5.4288]
[1755708879306,3.07,184.25,184.18,3.78468951]
[1755708880209,3.07,184.25,184.15,4.51118877]
[1755708880406,3.07,184.25,184.14,7.35118877]
[1755708880611,3.07,184.25,184.15,0.94480493]
[1755708880809,3.07,184.25,184.19,5.4288]
[1755708881009,0.03466078,184.21,184.16,2.84]
[1755708881307,0.03466078,184.21,184.18,2.84]
[1755708881504,0.03466078,184.21,184.2,8.2686]
[1755708881707,0.03466078,184.21,184.17,2.84]
[1755708881899,0.03466078,184.21,184.16,2.84]
[1755708882105,0.03466078,184.21,184.15,5.4559937]
[1755708882411,3.10466078,184.21,184.17,2.84]
[1755708882612,3.10466078,184.21,184.18,5.429]
[1755708882809,0.03466078,184.21,184.19,2.84]
[1755708883107,0.03466078,184.21,184.16,10.35064412]
[1755708883312,0.03466078,184.21,184.2,8.2686]
[1755708885012,3.07,184.33,184.26,5.4267]
[1755708885213,3.07,184.33,184.23,2.84]
[1755708885605,3.07,184.33,184.27,5.4264]
[1755708886207,3.07,184.37,184.25,2.99945535]
[1755708886409,3.07,184.37,184.28,2.99945535]
[1755708886614,120.25625514,184.39,184.31,2.99945535]
[1755708886803,120.25625514,184.39,184.32,2.84]
[1755708887409,3.07,184.45,184.34,2.99945535]
[1755708887614,3.07,184.45,184.35,2.84]
[1755708888510,3.07,184.45,184.37,5.4236]
[1755708888706,3.07,184.45,184.31,4.51118877]
[1755708889014,3.07,184.45,184.35,5.4242]
[1755708889217,2.99945535,184.43,184.3,7.35118877]
[1755708889514,3.07,184.42,184.31,62.0]
[1755708889710,3.07,184.39,184.3,2.84]
[1755708890111,3.07,184.39,184.32,5.4251]
[1755708891611,3.07,184.39,184.3,2.84]
[1755708892412,3.07,184.39,184.31,5.4252]
[1755708894717,3.07,184.39,184.3,2.84]
[1755708895114,3.07,184.39,184.33,5.4246]
[1755708895513,3.07,184.39,184.33,0.04059287]
[1755708896420,2.98,184.39,184.34,5.4245]
[1755708896614,2.98,184.39,184.34,8.3945]
[1755708896820,2.98,184.39,184.34,2.97]
[1755708897218,0.03557308,184.38,184.34,2.97]
[1755708897421,3.01557308,184.38,184.34,2.97]
[1755708897610,2.98,184.37,184.33,0.04059287]
[1755708898116,2.98,184.36,184.33,0.04059287]
[1755708900225,0.03557308,184.38,184.33,0.04059287]
[1755708900421,2.99945535,184.37,184.33,0.04059287]
[1755708900623,2.98,184.34,184.33,0.04059287]
[1755708901017,2.99945535,184.37,184.33,0.04059287]
[1755708901218,2.98,184.37,184.33,3.01059287]
[1755708901416,0.03557308,184.38,184.33,8.43539287]
[1755708901615,3.01557308,184.38,184.33,5.46539287]
[1755708901921,3.01557308,184.38,184.33,8.43539287]
[1755708902615,3.01557308,184.38,184.34,2.97]
[1755708903218,0.03557308,184.38,184.35,2.97]
[1755708903421,3.01557308,184.38,184.33,0.04059287]
[1755708903724,2.98,184.35,184.33,0.04059287]
[1755708904124,2.98,184.34,184.33,0.04059287]
[1755708904324,2.98,184.34,184.24,2.97]
[1755708904521,2.98,184.3,184.24,2.97]
[1755708905521,2.98,184.3,184.21,5.4283]
[1755708905723,0.03874575,184.29,184.21,5.4283]
[1755708906326,0.03874575,184.29,184.2,2.97]
[1755708906727,2.98,184.27,184.2,8.3985]
[1755708907525,2.98,184.27,184.21,5.4283]
[1755708907724,2.98,184.27,184.2,2.97]
[1755708908628,2.98,184.27,184.2,8.3985]
[1755708908829,2.98,184.27,184.2,2.97]
[1755708909726,2.98,184.27,184.22,5.428]
[1755708909933,2.99945535,184.28,184.17,4.50734523]
[1755708910132,2.99945535,184.28,184.18,2.97]
[1755708910721,0.04136088,184.25,184.18,2.97]
[1755708910933,0.04136088,184.25,184.23,5.4277]
[1755708912635,0.04136088,184.25,184.24,5.4275]
[1755708913334,6.56081623,184.25,184.15,65.91480493]
[1755708913528,2.99945535,184.22,184.15,3.91480493]
[1755708913929,2.99945535,184.22,184.16,5.4296]
[1755708914330,3.01567271,184.2,184.15,3.91480493]
[1755708914734,2.98,184.2,184.15,6.37470493]
[1755708914932,2.98,184.2,184.15,9.34470493]
[1755708915237,0.03698503,184.19,184.16,5.4298]
[1755708915837,0.03698503,184.19,184.15,9.34490493]
[1755708916732,3.01698503,184.19,184.15,0.94480493]
[1755708917133,2.98,184.18,184.14,5.4303]
[1755708917528,2.98,184.18,184.12,0.94501018]
[1755708918141,2.98,184.18,184.12,6.37591018]
[1755708918641,2.98,184.18,184.13,5.4305]
[1755708918845,2.98,184.18,184.13,8.4005]
[1755708919538,0.03698503,184.19,184.12,0.94501018]
[1755708919937,0.03698503,184.19,184.13,2.97]
[1755708920330,3.01698503,184.19,184.13,2.97]
[1755708920532,3.01698503,184.19,184.12,0.94501018]
[1755708921842,3.01698503,184.19,184.12,6.37601018]
[1755708922038,3.01698503,184.19,184.12,0.94501018]
[1755708922245,3.01698503,184.19,184.12,6.37591018]
[1755708923143,3.01698503,184.19,184.11,5.4312]
[1755708923339,3.01698503,184.19,184.1,2.97]
[1755708923545,3.01698503,184.19,184.13,5.4306]
[1755708923944,3.01698503,184.19,184.1,2.97]
[1755708924146,3.01698503,184.19,184.12,5.4308]
[1755708924549,3.01698503,184.19,184.1,2.97]
[1755708924741,3.01698503,184.19,184.13,5.4306]
[1755708925554,3.01698503,184.19,184.1,2.97]
[1755708926045,3.01698503,184.19,184.11,5.431]
[1755708926253,3.01698503,184.19,184.09,0.94511284]
[1755708926549,3.01698503,184.19,184.1,5.4315]
[1755708926944,3.01698503,184.19,184.09,0.94511284]
[1755708927340,8.02120154,184.19,184.09,0.94511284]
[1755708927545,2.9,184.18,184.07,2.93]
[1755708927751,2.9,184.18,184.08,5.4321]
[1755708928353,0.04073007,184.15,184.07,8.3624]
[1755708928540,2.9,184.14,184.07,8.3624]
[1755708928945,2.9,184.14,184.07,2.93]
[1755708929146,2.9,184.14,184.06,0.9452412]
[1755708929348,2.9,184.14,184.04,2.93]
[1755708929553,2.9,184.14,184.04,8.3631]
[1755708929753,2.9,184.14,184.04,2.93]
[1755708930145,0.03657421,184.11,184.02,0.94542096]
[1755708930349,0.03657421,184.11,184.03,2.93]
[1755708930745,2.93657421,184.11,184.04,5.4331]
[1755708930945,2.93657421,184.11,184.03,2.93]
[1755708931349,0.03657421,184.11,184.03,2.93]
[1755708932152,0.03657421,184.11,184.08,5.432]
[1755708932357,0.03657421,184.11,184.08,8.362]
[1755708932955,0.03657421,184.11,184.09,5.4319]
[1755708933159,0.03657421,184.11,184.1,2.93]
[1755708933456,0.03657421,184.11,184.1,8.3616]
[1755708935247,0.03657421,184.11,184.06,2.93]
[1755708935456,0.03657421,184.11,184.07,2.93]
[1755708935750,0.03657421,184.11,184.08,5.432]
[1755708936154,0.03657421,184.11,184.06,2.93]
[1755708936354,0.03657421,184.11,184.09,8.3616]
[1755708936549,0.03657421,184.11,184.1,2.93]
[1755708936854,0.03657421,184.11,184.1,8.3616]
[1755708941157,0.03657421,184.11,184.1,5.4316]
[1755708941560,0.03657421,184.11,184.09,5.4318]
[1755708941761,2.93657421,184.11,184.07,2.93]
[1755708942066,2.9,184.1,184.04,2.93]
[1755708942758,2.9,184.1,184.02,0.94542096]
[1755708943349,2.9,184.1,184.04,5.4331]
[1755708943552,2.9,184.1,184.02,0.94542096]
[1755708943754,5.9038866,184.1,184.02,0.94542096]
[1755708943961,2.9,184.09,184.02,0.94542096]
[1755708945157,2.9,184.09,184.05,5.4328]
[1755708945755,2.9,184.1,184.02,0.94542096]
[1755708946263,2.9,184.1,184.03,5.4334]
[1755708946661,5.9038866,184.1,183.97,2.93]
[1755708946865,2.9,184.09,183.97,2.93]
[1755708947161,2.9,184.09,183.99,0.94560078]
[1755708947362,0.0399329,184.05,183.99,0.94560078]
[1755708947659,0.0399329,184.05,183.99,3.87560078]
[1755708947867,0.0399329,184.05,184.02,5.4337]
[1755708948358,2.9399329,184.05,184.01,5.4342]
[1755708948659,0.0399329,184.05,183.99,3.87560078]
[1755708948865,0.0399329,184.05,184.01,0.03678188]
[1755708949051,2.9,184.03,184.01,0.03678188]
[1755708950260,0.0399329,184.05,184.01,0.03678188]
[1755708950464,2.9,184.04,184.01,0.03678188]
[1755708950954,0.0399329,184.05,184.01,0.03678188]
[1755708950955,2.9,184.03,184.01,0.03678188]
[1755708951750,0.0399329,184.05,184.01,0.03678188]
[1755708951955,0.0399329,184.05,184.01,2.96678188]
[1755708953259,0.0399329,184.05,184.02,2.93]
[1755708953762,2.9399329,184.05,184.01,0.03678188]
[1755708953964,2.9399329,184.05,184.02,5.4338]
[1755708954566,2.9399329,184.05,184.01,2.96678188]
[1755708954766,2.9,184.04,184.01,0.03678188]
[1755708954965,2.9,184.04,184.01,5.47098188]
[1755708956762,2.9,184.04,184.01,0.03678188]
[1755708957165,2.9,184.04,184.02,5.4337]
[1755708957361,2.9,184.04,184.01,0.03678188]
[1755708957564,2.9,184.04,184.02,5.4337]
[1755708957966,2.9,184.04,184.01,2.95678188]
[1755708958363,2.9,184.04,184.02,5.4339]
[1755708958666,2.9,184.04,184.01,2.95678188]
[1755708958867,3.0999329,184.05,184.02,5.4337]
[1755708960068,0.0399329,184.05,184.02,5.4337]
[1755708960272,0.0399329,184.05,184.02,8.3537]
[1755708960465,0.0399329,184.05,184.03,2.92]
[1755708960671,0.0399329,184.05,184.01,0.03678188]
[1755708960672,0.0399329,184.05,184.04,2.92]
[1755708960868,3.0999329,184.05,184.01,0.03678188]
[1755708961062,3.06,184.04,184.01,0.03678188]
[1755708961469,0.0399329,184.05,184.02,5.4339]
[1755708961668,3.0999329,184.05,184.02,5.4339]
[1755708963573,0.0399329,184.05,184.01,0.03678188]
[1755708963872,0.0399329,184.05,184.03,2.92]
[1755708964264,0.0399329,184.05,184.04,8.3533]
[1755708964775,0.0399329,184.05,184.04,5.4333]
[1755708965373,0.0399329,184.05,184.04,8.3533]
[1755708966571,0.0399329,184.05,184.03,5.4335]
[1755708966775,0.0399329,184.05,184.01,2.95678188]
[1755708967076,0.0399329,184.05,184.03,5.4336]
[1755708967266,0.0399329,184.05,184.01,0.03678188]
[1755708967465,0.0399329,184.05,184.02,2.92]
[1755708968075,3.0999329,184.05,184.01,0.03678188]
[1755708968474,3.0999329,184.05,184.01,5.47078188]
[1755708968980,3.06,184.04,184.01,0.03678188]
[1755708969176,0.0399329,184.05,184.01,0.03678188]
[1755708969367,3.06,184.03,184.01,0.03678188]
[1755708969681,3.0999329,184.05,184.01,2.95678188]
[1755708970676,3.0999329,184.05,184.02,5.4337]
[1755708971271,3.06,184.04,184.01,0.03678188]
[1755708971470,0.0399329,184.05,184.01,0.03678188]
[1755708971875,3.06,184.04,184.01,0.03678188]
[1755708972177,0.0399329,184.05,184.01,0.03678188]
[1755708972381,3.06,184.04,184.01,0.03678188]
[1755708973174,0.0399329,184.05,184.01,0.03678188]
[1755708973374,3.06,184.03,184.01,0.03678188]
[1755708973572,3.06,184.02,184.01,0.03678188]
[1755708976279,0.0399329,184.05,184.01,0.03678188]
[1755708976482,3.06,184.02,184.01,0.03678188]
[1755708978178,3.06,184.04,184.01,0.03678188]
[1755708978373,3.06,184.03,184.01,0.03678188]
[1755708978575,3.0999329,184.05,184.01,0.03678188]
[1755708978776,3.0999329,184.05,184.01,2.95678188]
[1755708978978,0.0399329,184.05,184.01,2.95678188]
[1755708979187,3.06,184.04,184.01,0.03678188]
[1755708979388,3.06,184.02,184.01,0.03678188]
[1755708983489,3.06,184.02,183.93,4.50734523]
[1755708983490,3.6,184.02,183.93,0.94596064]
[1755708983683,3.0038866,184.01,183.93,0.94596064]
[1755708983887,6.0638866,184.01,183.93,3.86596064]
[1755708984493,3.06,184.01,183.94,2.92]
[1755708984688,0.03785601,183.99,183.94,2.92]
[1755708984991,3.09785601,183.99,183.93,0.94596064]
[1755708985186,3.09785601,183.99,183.93,8.37330587]
[1755708985787,3.09785601,183.99,183.96,2.97]
[1755708985788,0.03785601,183.99,183.96,2.97]
[1755708988589,3.05785601,183.99,183.93,0.94596064]
[1755708989291,3.05785601,183.99,183.94,2.97]
[1755708989492,3.05785601,183.99,183.95,2.97]
[1755708990003,3.02,183.98,183.93,0.94596064]
[1755708990393,3.02,183.98,183.94,2.97]
[1755708991095,0.03785601,183.99,183.93,0.94596064]
[1755708991802,0.03785601,183.99,183.93,6.38256064]
[1755708991999,0.03785601,183.99,183.93,0.94596064]
[1755708993602,0.03785601,183.99,183.93,6.38236064]
[1755708993802,0.03785601,183.99,183.93,0.94596064]
[1755708994600,0.03785601,183.99,183.94,2.97]
[1755708994800,0.03785601,183.99,183.98,2.97]
[1755708997608,0.03785601,183.99,183.98,8.4051]
[1755708998299,0.03785601,183.99,183.95,2.97]
[1755708998503,3.05785601,183.99,183.95,2.97]
[1755708998900,0.03785601,183.99,183.95,2.97]
[1755708999102,3.02,183.98,183.93,3.91596064]
[1755708999309,3.02,183.96,183.93,0.94596064]
[1755709001310,0.03785601,183.99,183.93,9.35256064]
[1755709001808,0.03785601,183.99,183.93,3.91596064]
[1755709002010,0.03785601,183.99,183.95,2.97]
[1755709002208,0.03785601,183.99,183.94,2.97]
[1755709002517,3.05785601,183.99,183.95,2.97]
[1755709002703,0.03785601,183.99,183.93,0.94596064]
[1755709005922,0.03785601,183.99,183.91,8.407]
[1755709006125,3.02,183.98,183.91,2.97]
[1755709006517,3.02,183.98,183.9,0.94611495]
[1755709006920,3.02,183.98,183.9,3.91611495]
[1755709007329,3.02,183.98,183.9,0.94611495]
[1755709007926,3.02,183.98,183.91,2.97]
[1755709008426,3.02,183.98,183.92,5.4369]
[1755709009133,0.03785601,183.99,183.95,2.97]
[1755709009424,0.03785601,183.99,183.91,2.97]
[1755709009624,0.03785601,183.99,183.91,7.47734523]
[1755709009828,0.03785601,183.99,183.92,2.97]
[1755709010621,0.03785601,183.99,183.92,7.47734523]
[1755709011619,0.03785601,183.99,183.95,5.436]
[1755709011821,0.03785601,183.99,183.95,8.406]
[1755709013225,0.03785601,183.99,183.95,2.97]
[1755709013528,3.05785601,183.99,183.95,2.97]
[1755709013929,3.02,183.98,183.93,5.4365]
[1755709014128,3.02,183.98,183.93,8.4065]
[1755709014328,3.02,183.97,183.93,2.97]
[1755709014731,0.03785601,183.99,183.9,5.45346018]
[1755709014732,3.02,183.96,183.9,5.45346018]
[1755709015327,3.02,183.96,183.9,6.38341495]
[1755709015535,0.03657599,183.95,183.9,0.94611495]
[1755709015831,0.03657599,183.95,183.9,4.00611495]
[1755709016034,2.81,183.93,183.9,4.00611495]
[1755709016221,2.81,183.93,183.9,0.94611495]
[1755709016423,2.81,183.93,183.88,4.50734523]
[1755709016730,0.03657599,183.95,183.88,7.56734523]
[1755709016932,2.81,183.94,183.88,3.06]
[1755709017126,2.81,183.94,183.87,4.50734523]
[1755709017326,2.81,183.93,183.85,4.50734523]
[1755709017530,2.81,183.93,183.84,4.50734523]
[1755709017733,2.81,183.93,183.83,8.51375608]
[1755709018127,0.04049648,183.9,183.83,8.51375608]
[1755709019023,0.04049648,183.9,183.84,5.4391]
[1755709019428,2.85049648,183.9,183.83,9.44591085]
[1755709019628,2.85049648,183.9,183.83,4.00641085]
[1755709020830,2.85049648,183.9,183.83,9.44591085]
[1755709021236,2.81,183.88,183.8,4.50734523]
[1755709021633,2.81,183.88,183.79,3.06]
[1755709021634,3.0038866,183.86,183.79,7.56734523]
[1755709021833,2.81,183.85,183.79,3.06]
[1755709023038,2.81,183.85,183.76,0.94677132]
[1755709024135,2.81,183.85,183.79,5.4407]
[1755709024340,2.81,183.85,183.77,3.06]
[1755709025137,2.81,183.85,183.78,5.4408]
[1755709026234,2.81,183.85,183.77,3.06]
[1755709027038,2.81,183.85,183.76,0.94677132]
[1755709027442,2.81,183.85,183.76,6.38817132]
[1755709028243,2.81,183.82,183.76,0.94677132]
[1755709029144,2.81,183.79,183.76,0.94677132]
[1755709029442,2.81,183.78,183.71,3.06]
[1755709029648,2.81,183.78,183.72,5.4428]
[1755709029847,2.81,183.78,183.71,3.06]
[1755709030450,0.03613445,183.77,183.71,3.06]
[1755709031749,0.03613445,183.77,183.71,8.5029]
[1755709032046,0.03613445,183.77,183.71,3.06]
[1755709032257,0.03613445,183.77,183.73,5.4425]
[1755709032447,0.03613445,183.77,183.73,8.5025]
[1755709032746,0.03613445,183.77,183.7,0.94711918]
[1755709032747,0.03613445,183.77,183.74,5.4421]
[1755709032937,0.03613445,183.77,183.76,3.06]
[1755709033642,2.84613445,183.77,183.7,4.00711918]
[1755709034444,0.03613445,183.77,183.71,3.06]
[1755709034640,0.03613445,183.77,183.7,0.94711918]
[1755709034845,0.03613445,183.77,183.76,3.06]
[1755709035049,0.03613445,183.77,183.71,3.06]
[1755709035249,0.03613445,183.77,183.74,3.06]
[1755709035450,0.03613445,183.77,183.71,3.06]
[1755709036246,0.03613445,183.77,183.76,5.4416]
[1755709036445,0.03613445,183.77,183.76,8.5016]
[1755709038150,120.26239957,183.85,183.81,5.4401]
[1755709038354,120.26239957,183.85,183.77,3.06]
[1755709038355,2.81,183.84,183.77,3.06]
[1755709038552,5.4406,183.8,183.77,3.06]
[1755709038948,2.81,183.8,183.73,3.06]
[1755709039147,5.4413,183.78,183.73,8.5023]
[1755709039343,2.81,183.8,183.73,3.06]
[1755709039547,0.04014052,183.78,183.71,3.06]
[1755709039749,0.04014052,183.78,183.74,5.442]
[1755709039949,0.04014052,183.78,183.74,3.06]
[1755709040144,0.04014052,183.78,183.75,8.5017]
[1755709040350,0.04014052,183.78,183.77,3.06]
[1755709040856,0.04014052,183.78,183.77,8.5013]
[1755709041657,0.04014052,183.78,183.7,0.94711918]
[1755709041856,0.04014052,183.78,183.71,3.06]
[1755709042049,5.4413,183.77,183.73,5.4423]
[1755709042253,5.4413,183.77,183.73,8.5023]
[1755709042556,5.4413,183.77,183.74,3.06]
[1755709042855,2.85014052,183.78,183.74,3.06]
[1755709043252,2.85014052,183.78,183.74,8.5021]
[1755709043458,2.81,183.77,183.71,3.06]
[1755709043759,0.04014052,183.78,183.71,3.06]
[1755709044553,2.81,183.77,183.71,3.06]
[1755709046559,2.81,183.77,183.7,0.94711918]
[1755709051459,2.89,183.75,183.7,0.94711918]
[1755709051662,2.89,183.75,183.64,2.94]
[1755709051863,2.89,183.75,183.66,0.94733833]
[1755709052464,0.03489479,183.72,183.66,0.94733833]
[1755709056164,2.92489479,183.72,183.66,0.94733833]
[1755709059767,2.92489479,183.72,183.66,3.88733833]
[1755709061273,0.03489479,183.72,183.67,2.94]
[1755709061468,0.03489479,183.72,183.69,2.94]
[1755709061666,2.92489479,183.72,183.66,3.88733833]
[1755709062066,0.03489479,183.72,183.68,2.94]
[1755709062368,0.03489479,183.72,183.69,2.94]
[1755709062668,126.32981017,183.85,183.72,2.94]
[1755709062669,2.89,183.82,183.72,2.94]
[1755709065671,2.89,183.82,183.68,3.0038866]
[1755709065672,2.89,183.8,183.68,2.94]
[1755709067172,2.89,183.8,183.68,5.9438866]
[1755709067367,2.89,183.8,183.69,2.94]
[1755709069473,2.89,183.8,183.71,3.0038866]
[1755709069672,2.89,183.8,183.72,2.94]
[1755709070670,0.03816128,183.78,183.75,2.94]
[1755709070875,0.03816128,183.78,183.74,3.04243204]
[1755709071172,0.03816128,183.78,183.77,2.94]
[1755709074069,0.03816128,183.78,183.74,5.98243204]
[1755709074274,0.03816128,183.78,183.75,2.94]
[1755709074469,0.03816128,183.78,183.77,2.94]
[1755709076777,0.03816128,183.78,183.77,5.9438866]
[1755709077070,0.03816128,183.78,183.77,5.9338866]
[1755709077283,2.96,183.87,183.78,2.93]
[1755709078573,2.96,183.87,183.81,0.03878754]
[1755709079369,141.9474106,183.94,183.81,0.03878754]
[1755709079370,2.96,183.85,183.81,0.03878754]
[1755709079678,2.96,183.84,183.81,0.03878754]
[1755709079876,2.96,183.83,183.73,2.93]
[1755709080075,2.96,183.83,183.81,0.03568987]
[1755709080274,2.96,183.82,183.81,0.03568987]
[1755709080475,2.96,183.82,183.73,2.93]
[1755709080882,2.96,183.86,183.8,0.03643169]
[1755709081379,2.96,183.86,183.75,5.9338866]
[1755709081576,2.96,183.88,183.81,0.04149392]
[1755709081787,2.96,183.85,183.81,0.04149392]
[1755709082276,2.96,183.82,183.71,3.0038866]
[1755709082475,2.96,183.82,183.7,2.93]
[1755709083883,2.96,183.82,183.71,3.0038866]
[1755709084083,2.96,183.82,183.72,2.93]
[1755709085178,2.96,183.79,183.69,2.93]
[1755709086380,2.96,183.79,183.66,3.95122493]
[1755709086381,2.96,183.79,183.66,3.87733833]
[1755709086684,9.0712972,183.84,183.66,3.87733833]
[1755709086685,2.96,183.76,183.66,3.87733833]
[1755709088180,2.96,183.76,183.66,0.94733833]
[1755709088886,2.96,183.76,183.66,3.87733833]
[1755709090187,5.9638866,183.76,183.66,3.87733833]
[1755709090388,2.96,183.75,183.66,3.87733833]
[1755709092385,2.96,183.75,183.66,0.94733833]
[1755709092585,0.035558,183.72,183.69,0.03917777]
[1755709092986,2.96,183.78,183.7,2.93]
[1755709093392,0.03740371,183.72,183.7,2.93]
[1755709093589,2.96,183.78,183.7,2.93]
[1755709093885,0.0413938,183.73,183.71,2.93]
[1755709094091,0.0413938,183.73,183.69,0.03917777]
[1755709094092,0.0413938,183.73,183.72,2.93]
[1755709098596,2.96,183.72,183.69,0.03917777]
[1755709099196,0.0413938,183.73,183.69,2.96917777]
[1755709099993,3.0013938,183.73,183.69,2.96917777]
[1755709101191,0.0413938,183.73,183.7,2.93]
[1755709102396,0.0413938,183.73,183.72,2.93]
[1755709103689,120.99923133,183.84,183.72,2.93]
[1755709103690,2.96,183.84,183.73,2.93]
[1755709104197,2.96,183.84,183.75,3.0038866]
[1755709104399,2.96,183.84,183.75,5.9338866]
[1755709104992,2.96,183.84,183.78,0.03622673]
[1755709106099,2.96,183.84,183.78,2.88622673]
[1755709106292,2.96,183.84,183.78,0.03622673]
[1755709107106,2.96,183.84,183.83,5.4396]
[1755709109699,3.09,183.9,183.78,5.89011333]
[1755709110095,8.5277,183.9,183.78,5.8538866]
[1755709110308,0.03473362,183.86,183.78,2.85]
[1755709110605,3.09,183.85,183.82,0.03635004]
[1755709111310,3.09,183.85,183.84,5.4393]
[1755709112008,0.03473362,183.86,183.82,5.47615004]
[1755709112202,3.09,183.83,183.82,5.47615004]
[1755709115114,3.09,183.83,183.82,0.03635004]
[1755709117114,3.09,183.82,183.72,2.85]
[1755709117612,3.0038866,183.85,183.77,5.4412]
[1755709117811,3.0038866,183.82,183.72,2.85]
[1755709118115,5.4405,183.8,183.75,5.4418]
[1755709118313,3.09,183.79,183.75,5.4418]
[1755709118512,3.09,183.79,183.72,2.85]
[1755709119113,8.5308,183.79,183.72,2.85]
[1755709119319,5.4408,183.79,183.74,5.4422]
[1755709119614,3.0038866,183.82,183.74,5.4422]
[1755709119805,3.09,183.77,183.68,2.85]
[1755709120211,5.4418,183.76,183.68,2.85]
[1755709120412,3.09,183.75,183.71,5.4429]
[1755709120614,3.09,183.74,183.71,5.4429]
[1755709121015,3.09,183.75,183.72,5.4428]
[1755709121207,3.09,183.73,183.72,5.4428]
[1755709122018,3.09,183.76,183.73,5.4425]
[1755709122211,3.09,183.75,183.68,2.85]